bitfinex-derivatives/quotes_BNBF0:USTF0_20250126
["timestamp","ask_amount","ask_price","bid_price","bid_amount"]
[1737897291516,0.716,686.47,685.52,1.09271228]
[1737897291718,0.716,686.47,685.53,0.26792465]
[1737897293528,0.716,686.47,685.54,0.26792421]
[1737897293729,0.716,686.47,685.53,0.26792421]
[1737897293928,0.716,686.47,685.54,0.26792421]
[1737897294229,0.716,686.47,685.55,0.26792421]
[1737897294424,0.716,686.47,685.53,0.26792421]
[1737897294630,0.716,686.47,685.54,0.26792555]
[1737897294928,0.716,686.47,685.55,0.26792555]
[1737897295121,0.716,686.47,685.52,1.09271228]
[1737897295326,0.716,686.47,685.53,0.26792565]
[1737897295527,0.716,686.47,685.54,1.09271228]
[1737897295731,0.716,686.47,685.55,0.26792565]
[1737897298031,0.716,686.47,685.55,1.36063793]
[1737897298432,0.716,686.47,685.55,1.09271228]
[1737897300333,0.716,686.47,685.56,1.09271228]
[1737897300930,0.716,686.47,685.57,0.26791688]
[1737897301132,0.716,686.47,685.56,1.09271228]
[1737897301333,0.716,686.47,685.57,0.26791492]
[1737897302434,0.716,686.47,685.56,1.09271228]
[1737897303332,0.716,686.47,685.33,0.75679215]
[1737897303333,0.716,686.47,685.59,1.09271228]
[1737897306842,0.716,686.47,685.32,0.29183447]
[1737897311139,0.29135406,686.45,685.18,1.09271228]
[1737897312645,1.21035406,686.45,685.18,1.09271228]
[1737897313648,1.21035406,686.45,685.19,1.09271228]
[1737897318549,1.21035406,686.45,683.92,1.09271228]
[1737897318752,1.21035406,686.45,684.04,0.29238056]
[1737897318950,1.21035406,686.45,684.05,0.26820047]
[1737897319246,1.21035406,686.45,684.16,0.29232927]
[1737897319451,1.21035406,686.45,684.17,0.26820047]
[1737897319744,1.21035406,686.45,684.19,0.29231646]
[1737897319950,1.21035406,686.45,684.2,0.26820235]
[1737897320149,1.21035406,686.45,684.22,0.29230364]
[1737897320351,1.21035406,686.45,684.23,0.26820235]
[1737897320553,1.21035406,686.45,684.25,0.29229082]
[1737897320945,1.21035406,686.45,684.26,0.26820235]
[1737897321145,1.21035406,686.45,684.28,0.29227801]
[1737897321351,1.21035406,686.45,684.29,0.26820235]
[1737897321745,1.21035406,686.45,684.31,0.2922652]
[1737897321947,1.21035406,686.45,684.32,0.26820235]
[1737897322145,1.21035406,686.45,684.34,0.29225238]
[1737897322346,1.21035406,686.45,684.35,0.26820235]
[1737897322545,1.21035406,686.45,684.37,0.29223957]
[1737897322750,1.21035406,686.45,684.38,0.26820235]
[1737897323552,1.21035406,686.45,684.4,0.29222676]
[1737897323751,1.21035406,686.45,684.41,0.26820159]
[1737897323951,1.21035406,686.45,684.43,0.29221395]
[1737897324252,1.21035406,686.45,684.44,0.26820159]
[1737897324846,1.21035406,686.45,684.45,0.29220542]
[1737897325052,1.21035406,686.45,684.46,0.26820159]
[1737897325349,1.21035406,686.45,684.47,0.29219688]
[1737897325554,1.21035406,686.45,684.48,0.26820159]
[1737897325949,1.21035406,686.45,684.47,0.29219688]
[1737897326151,1.21035406,686.45,684.48,0.26820037]
[1737897328059,1.21035406,686.45,684.5,0.29218407]
[1737897328257,1.21035406,686.45,684.51,0.26820037]
[1737897329060,1.21035406,686.45,684.52,0.29217553]
[1737897329258,1.21035406,686.45,684.53,0.26820037]
[1737897329558,1.21035406,686.45,684.54,0.292167]
[1737897330354,1.21035406,686.45,684.55,0.26820037]
[1737897330753,1.21035406,686.45,684.56,0.29215846]
[1737897331058,1.21035406,686.45,684.57,0.26818256]
[1737897331257,1.21035406,686.45,684.58,0.29214993]
[1737897331459,1.21035406,686.45,684.59,0.26818256]
[1737897331659,1.21035406,686.45,684.6,0.29214139]
[1737897331861,1.21035406,686.45,684.61,0.26818256]
[1737897332059,1.21035406,686.45,684.62,0.29213286]
[1737897332259,1.21035406,686.45,684.63,0.26818256]
[1737897332459,1.21035406,686.45,684.64,0.29212432]
[1737897332660,1.21035406,686.45,684.65,0.26818256]
[1737897333759,1.21035406,686.45,684.66,0.29211579]
[1737897333962,1.21035406,686.45,684.67,0.26818256]
[1737897336767,1.21035406,686.45,684.68,0.29210726]
[1737897337661,1.21035406,686.45,684.69,0.26818256]
[1737897338169,1.21035406,686.45,684.7,0.29209872]
[1737897338469,1.21035406,686.45,684.71,0.26818256]
[1737897338667,1.21035406,686.45,684.72,0.29209019]
[1737897339164,1.21035406,686.45,684.73,0.26816187]
[1737897339367,1.21035406,686.45,684.72,0.29209019]
[1737897341673,1.21035406,686.45,684.73,0.26816266]
[1737897341867,1.21035406,686.45,684.72,0.29209019]
[1737897342673,1.21035406,686.45,684.73,0.2681644]
[1737897342972,1.21035406,686.45,684.73,0.29208593]
[1737897344468,1.21035406,686.45,684.74,0.26816377]
[1737897345265,1.21035406,686.45,684.75,0.26816398]
[1737897345471,1.21035406,686.45,684.76,0.26816398]
[1737897345671,1.21035406,686.45,684.74,0.26816398]
[1737897345869,1.21035406,686.45,684.75,0.26816398]
[1737897346069,1.21035406,686.45,684.74,0.26816398]
[1737897346273,1.21035406,686.45,684.75,0.26816398]
[1737897346571,1.21035406,686.45,684.76,0.26816398]
[1737897346775,1.21035406,686.45,684.74,0.26816398]
[1737897346973,1.21035406,686.45,684.75,0.26816036]
[1737897347170,1.21035406,686.45,684.76,0.26816036]
[1737897347368,1.21035406,686.45,684.73,0.29208593]
[1737897347369,1.21035406,686.45,684.74,0.26816036]
[1737897347572,1.21035406,686.45,684.75,0.26816036]
[1737897347772,1.21035406,686.45,684.74,0.26816036]
[1737897347973,1.21035406,686.45,684.75,0.26816036]
[1737897348174,1.21035406,686.45,684.76,0.26816036]
[1737897348373,1.21035406,686.45,684.74,0.26816036]
[1737897348570,1.21035406,686.45,684.73,0.29208593]
[1737897348771,1.21035406,686.45,684.74,0.26816811]
[1737897349578,1.21035406,686.45,684.83,1.09271228]
[1737897349579,1.0920571,686.33,684.83,1.09271228]
[1737897349778,0.29140925,686.32,684.84,0.26816591]
[1737897350979,1.18340925,686.32,684.84,0.26816591]
[1737897351377,1.18340925,686.32,684.83,1.09271228]
[1737897351780,1.18340925,686.32,684.84,0.26817074]
[1737897353174,1.18340925,686.32,684.83,1.09271228]
[1737897353781,1.18340925,686.32,684.81,1.09271228]
[1737897353979,1.18340925,686.32,684.82,0.26816448]
[1737897354880,1.18340925,686.32,684.83,0.26816353]
[1737897355079,1.18340925,686.32,684.82,0.26816353]
[1737897355381,1.18340925,686.32,684.83,0.26816355]
[1737897355580,1.18340925,686.32,684.84,0.26816355]
[1737897355781,1.18340925,686.32,684.82,0.26816355]
[1737897355980,1.18340925,686.32,684.81,1.09271228]
[1737897356181,1.0920571,686.31,684.82,1.36087191]
[1737897356376,0.29141774,686.3,684.83,0.26815963]
[1737897359079,0.29141774,686.3,684.82,1.09271228]
[1737897360085,1.0920571,686.27,684.83,1.09271228]
[1737897360285,0.29143473,686.26,684.83,1.09271228]
[1737897362990,0.29143473,686.26,684.84,0.26817141]
[1737897364286,0.29143473,686.26,684.83,1.09271228]
[1737897364485,0.29143473,686.26,684.84,0.26817016]
[1737897364885,1.0920571,686.24,684.84,0.26817016]
[1737897365185,0.29144747,686.23,684.83,1.09271228]
[1737897367093,0.29144747,686.23,684.84,0.26816425]
[1737897368690,0.29144747,686.23,684.83,1.09271228]
[1737897369087,1.0920571,686.08,684.86,1.09271228]
[1737897371596,0.29144747,686.23,684.87,1.09271228]
[1737897371597,1.0920571,686.04,684.87,1.09271228]
[1737897375002,1.0920571,686.05,684.85,1.09271228]
[1737897378007,1.0920571,686.15,684.78,1.09271228]
[1737897378204,1.38353855,686.15,684.78,1.09271228]
[1737897381707,1.0920571,686.13,684.81,1.09271228]
[1737897385211,0.29148145,686.15,684.76,1.09271228]
[1737897388517,1.0920571,686.13,684.8,1.09271228]
[1737897389518,1.0920571,686.13,684.81,0.26817412]
[1737897390419,1.0920571,686.14,684.81,0.26817412]
[1737897391317,1.0920571,686.14,684.82,0.26817524]
[1737897391519,1.0920571,686.14,684.81,0.26817524]
[1737897393417,1.0920571,686.14,684.8,1.09271228]
[1737897393624,1.0920571,686.0,684.9,1.09271228]
[1737897394323,1.8460571,686.0,684.9,1.09271228]
[1737897397622,0.754,686.0,684.82,1.09271228]
[1737897400321,0.754,686.0,684.83,1.09271228]
[1737897406922,0.754,686.0,684.85,1.09271228]
[1737897409722,0.754,686.0,684.86,1.09271228]
[1737897412727,0.754,686.0,684.87,0.26818048]
[1737897413126,0.754,686.0,684.88,0.26818048]
[1737897413331,0.754,686.0,684.85,1.09271228]
[1737897413531,0.754,686.0,684.86,0.26818065]
[1737897415735,1.0920571,685.92,684.91,1.09271228]
[1737897417029,2.1760571,685.92,684.91,1.09271228]
[1737897419334,1.0920571,685.9,684.93,1.09271228]
[1737897422737,1.084,685.92,684.73,0.29208593]
[1737897430246,1.084,685.92,684.74,0.2682098]
[1737897430539,1.084,685.92,684.73,0.29208593]
[1737897431637,0.29158344,685.91,684.73,0.29208593]
[1737897443445,1.07758344,685.91,684.73,0.29208593]
[1737897457551,2.16964054,685.91,684.73,0.29208593]
[1737897460356,1.0920571,685.84,684.73,0.29208593]
[1737897462451,1.0920571,685.79,684.73,0.29208593]
[1737897465559,1.0920571,685.76,684.73,0.29208593]
[1737897466760,2.0460571,685.76,684.73,0.29208593]
[1737897468159,1.0920571,685.66,684.73,0.29208593]
[1737897469155,1.0920571,685.66,684.69,1.09271228]
[1737897471461,0.954,685.76,684.4,1.09271228]
[1737897471661,0.954,685.76,684.41,0.29222249]
[1737897479964,0.954,685.76,684.42,0.26828771]
[1737897480271,0.954,685.76,684.43,0.29221395]
[1737897480469,0.954,685.76,684.44,0.26828771]
[1737897481064,0.954,685.76,684.44,0.56049739]
[1737897481264,0.954,685.76,684.45,0.26828771]
[1737897483068,0.954,685.76,684.44,0.29220968]
[1737897493078,0.954,685.76,684.46,1.09271228]
[1737897496383,0.954,685.76,684.44,0.29220968]
[1737897516498,0.29165147,685.75,684.44,0.29220968]
[1737897517901,1.03665147,685.75,684.44,0.29220968]
[1737897548427,1.0920571,685.68,684.44,0.29220968]
[1737897549127,0.2916855,685.67,684.44,0.29220968]
[1737897549729,1.2666855,685.67,684.44,0.29220968]
[1737897550827,1.0920571,685.62,684.44,0.29220968]
[1737897555129,1.0920571,685.55,684.44,0.29220968]
[1737897560731,1.0920571,685.58,684.44,0.29220968]
[1737897566035,1.0920571,685.58,684.45,0.26833168]
[1737897567141,1.0920571,685.58,684.44,0.29220968]
[1737897570043,0.2916855,685.67,684.44,0.29220968]
[1737897571146,1.1816855,685.67,684.44,0.29220968]
[1737897591659,1.1816855,685.67,684.45,0.268338]
[1737897594861,1.0920571,685.59,684.45,1.36105028]
[1737897595065,1.0920571,685.59,684.46,0.268338]
[1737897597165,1.0920571,685.59,684.45,1.09271228]
[1737897597366,1.0920571,685.59,684.46,0.26833231]
[1737897598069,1.0920571,685.6,684.47,1.09271228]
[1737897598462,1.0920571,685.6,684.48,0.26833332]
[1737897598767,1.0920571,685.6,684.47,1.09271228]
[1737897599464,1.0920571,685.6,684.48,0.26833365]
[1737897599863,1.0920571,685.6,684.47,1.09271228]
[1737897600872,1.0920571,685.57,684.49,1.09271228]
[1737897602370,1.8420571,685.57,684.49,1.09271228]
[1737897604168,1.8420571,685.57,684.47,1.09271228]
[1737897606369,1.0920571,685.56,684.48,1.09271228]
[1737897609376,0.75,685.57,684.44,0.29220968]
[1737897621884,0.75,685.57,684.46,1.09271228]
[1737897624880,0.75,685.57,684.46,2.6166219]
[1737897625283,1.8420571,685.57,684.46,1.52390962]
[1737897628186,1.0920571,685.53,684.49,1.09271228]
[1737897629691,2.0280571,685.53,684.49,1.09271228]
[1737897631494,0.936,685.53,684.46,1.52390962]
[1737897647504,0.936,685.53,684.46,1.81611077]
[1737897648603,0.936,685.53,684.47,0.26827878]
[1737897649903,0.936,685.53,684.48,0.26828354]
[1737897650105,0.936,685.53,684.47,0.26828354]
[1737897653503,0.936,685.53,684.48,0.26828248]
[1737897653704,0.936,685.53,684.47,0.26828248]
[1737897653900,0.936,685.53,684.48,0.26828248]
[1737897654103,0.936,685.53,684.47,0.26828248]
[1737897654299,0.936,685.53,684.48,0.26828248]
[1737897654605,0.936,685.53,684.49,0.26828248]
[1737897654904,0.936,685.53,684.46,1.81611077]
[1737897655102,0.936,685.53,684.47,0.26828403]
[1737897657103,0.936,685.53,684.46,1.81611077]
[1737897657310,0.936,685.53,684.47,0.26827985]
[1737897660607,0.936,685.53,684.48,0.26828186]
[1737897660804,0.936,685.53,684.47,0.26828186]
[1737897661008,0.936,685.53,684.48,0.26828186]
[1737897661204,0.936,685.53,684.47,0.26828186]
[1737897663113,0.936,685.53,684.46,1.81611077]
[1737897663510,0.936,685.53,684.47,0.26827217]
[1737897665316,0.936,685.53,684.46,1.81611077]
[1737897666910,0.936,685.53,684.47,0.26827306]
[1737897667216,0.936,685.53,684.46,1.81611077]
[1737897667418,0.936,685.53,684.47,0.26827224]
[1737897667614,0.936,685.53,684.46,1.81611077]
[1737897668020,0.936,685.53,684.47,0.26827287]
[1737897668912,0.936,685.53,684.46,1.81611077]
[1737897671316,0.936,685.53,684.47,0.2682738]
[1737897671521,0.936,685.53,684.46,1.81611077]
[1737897671924,0.936,685.53,684.47,0.26827121]
[1737897675525,0.936,685.53,684.56,1.09271228]
[1737897675726,0.936,685.53,684.57,0.26827121]
[1737897678022,0.936,685.53,684.56,1.09271228]
[1737897678227,0.936,685.53,684.57,0.26827217]
[1737897678827,0.936,685.53,684.6,1.09271228]
[1737897681326,0.936,685.53,684.61,1.09271228]
[1737897684528,0.936,685.53,684.46,0.29220115]
[1737897684529,0.936,685.53,684.52,1.09271228]
[1737897688236,0.936,685.53,684.46,1.38491343]
[1737897689231,0.936,685.53,684.46,2.90872295]
[1737897691931,0.936,685.53,684.46,1.81601067]
[1737897701435,0.936,685.53,684.46,1.80176049]
[1737897724161,0.936,685.53,684.47,0.26834349]
[1737897726362,0.936,685.53,684.46,1.80176049]
[1737897726558,0.936,685.53,684.47,0.26834426]
[1737897734567,0.936,685.53,684.46,1.80176049]
[1737897735467,1.0920571,685.51,684.49,1.09271228]
[1737897736767,1.8680571,685.51,684.49,1.09271228]
[1737897738569,0.776,685.51,684.46,1.80176049]
[1737897750976,0.776,685.51,684.47,0.26830766]
[1737897755282,0.776,685.51,684.48,1.09271228]
[1737897755475,0.776,685.51,684.49,0.26830766]
[1737897756781,0.776,685.51,684.48,1.09271228]
[1737897758884,0.776,685.51,684.46,1.80176049]
[1737897759979,0.776,685.51,684.47,0.2683097]
[1737897761687,0.776,685.51,684.47,1.36102198]
[1737897761889,0.776,685.51,684.48,0.2683097]
[1737897764191,0.776,685.51,684.47,0.2683097]
[1737897764491,0.776,685.51,684.48,0.26831053]
[1737897764686,0.776,685.51,684.46,2.89447277]
[1737897765088,0.776,685.51,684.47,0.26831061]
[1737897766492,0.776,685.51,684.49,1.09271228]
[1737897766693,0.776,685.51,684.5,0.26831061]
[1737897770196,0.776,685.51,684.52,1.09271228]
[1737897771598,0.776,685.51,684.53,0.2683104]
[1737897773398,0.776,685.51,684.57,1.09271228]
[1737897780003,0.776,685.51,684.52,1.09271228]
[1737897786907,0.776,685.51,684.54,1.09271228]
[1737897790710,0.776,685.51,684.58,1.09271228]
[1737897793603,0.776,685.51,684.56,1.09271228]
[1737897797511,0.776,685.51,684.53,1.09271228]
[1737897800515,0.776,685.51,684.52,1.09271228]
[1737897800707,0.776,685.51,684.52,1.38488781]
[1737897802609,0.776,685.51,684.53,0.26824077]
[1737897803013,0.776,685.51,684.52,1.38488781]
[1737897803516,0.776,685.51,684.52,0.29217553]
[1737897803914,0.776,685.51,684.53,0.26824389]
[1737897806019,0.776,685.51,684.54,0.292167]
[1737897808117,0.776,685.51,684.55,0.26822469]
[1737897808316,0.776,685.51,684.56,0.29215846]
[1737897815924,0.776,685.51,684.57,0.26824152]
[1737897819722,0.776,685.51,684.56,0.29215846]
[1737897846341,0.776,685.51,684.57,0.26828916]
[1737897847134,0.776,685.51,684.56,0.29215846]
[1737897850244,0.776,685.51,684.57,0.26828549]
[1737897850642,0.776,685.51,684.58,0.26828426]
[1737897850940,0.776,685.51,684.57,0.26828426]
[1737897851142,0.776,685.51,684.58,0.26828426]
[1737897851537,0.776,685.51,684.59,0.26828426]
[1737897852940,0.776,685.51,684.57,0.26828426]
[1737897853140,0.776,685.51,684.56,0.29215846]
[1737897853341,0.776,685.51,684.57,0.26828922]
[1737897856849,0.776,685.51,684.56,0.29215846]
[1737897857048,0.776,685.51,684.57,0.2682896]
[1737897857446,0.776,685.51,684.57,1.36100188]
[1737897857649,0.776,685.51,684.58,0.2682896]
[1737897858250,0.776,685.51,684.57,1.09271228]
[1737897859353,0.776,685.51,684.58,0.26828611]
[1737897860856,0.776,685.51,684.61,1.09271228]
[1737897864351,0.776,685.51,684.62,1.09271228]
[1737897867560,0.776,685.51,684.56,0.29215846]
[1737897879468,0.776,685.51,684.61,1.09271228]
[1737897882870,0.776,685.51,684.56,0.29215846]
[1737897882871,0.776,685.51,684.64,1.09271228]
[1737897886372,0.776,685.51,684.56,0.29215846]
[1737897886373,0.776,685.51,684.63,1.09271228]
[1737897889567,0.776,685.51,684.67,1.09271228]
[1737897892175,0.776,685.51,684.66,1.09271228]
[1737897895773,0.776,685.51,684.67,1.09271228]
[1737897899679,0.776,685.51,684.62,1.09271228]
[1737897903381,0.776,685.51,684.61,1.09271228]
[1737897907483,0.776,685.51,684.64,1.09271228]
[1737897910888,0.776,685.51,684.63,1.09271228]
[1737897913988,0.776,685.51,684.64,1.09271228]
[1737897917492,0.776,685.51,684.62,1.09271228]
[1737897920291,0.776,685.51,684.63,1.09271228]
[1737897924795,0.776,685.51,684.64,1.09271228]
[1737897928295,0.776,685.51,684.66,1.09271228]
[1737897931297,0.776,685.51,684.67,1.09271228]
[1737897934398,0.776,685.51,684.6,1.09271228]
[1737897936996,0.776,685.51,684.59,1.09271228]
[1737897939700,0.776,685.51,684.6,0.268282]
[1737897940899,0.776,685.51,684.59,1.09271228]
[1737897944906,0.776,685.51,684.56,0.29215846]
[1737897947308,0.776,685.51,684.56,1.38487074]
[1737897950813,0.776,685.51,684.57,0.26827557]
[1737897952607,0.776,685.51,684.63,1.09271228]
[1737897956316,0.776,685.51,684.56,1.38487074]
[1737897959511,0.776,685.51,684.56,0.29215846]
[1737897963824,0.776,685.51,684.57,0.26824892]
[1737897964024,0.776,685.51,684.58,0.29214993]
[1737897964320,0.776,685.51,684.59,0.26824892]
[1737897964524,0.776,685.51,684.6,0.29214139]
[1737897966222,0.776,685.51,684.61,0.26825668]
[1737897968723,0.2916855,685.67,684.61,0.26825668]
[1737897969321,0.2916855,685.67,684.62,0.26826414]
[1737897969525,0.2916855,685.67,684.63,0.26826414]
[1737897969727,0.2916855,685.67,684.64,0.26826414]
[1737897970026,0.2916855,685.67,684.6,1.38485367]
[1737897970027,0.2916855,685.67,684.65,0.26826414]
[1737897970226,0.2916855,685.67,684.6,1.38485367]
[1737897970420,0.2916855,685.67,684.61,0.26826114]
[1737897971127,0.2916855,685.67,684.63,1.09271228]
[1737897971327,0.2916855,685.67,684.64,0.26826114]
[1737897971528,0.2916855,685.67,684.65,0.2682601]
[1737897971728,0.2916855,685.67,684.64,0.2682601]
[1737897971928,0.2916855,685.67,684.65,0.2682601]
[1737897972127,0.2916855,685.67,684.64,0.2682601]
[1737897972328,0.2916855,685.67,684.65,0.2682601]
[1737897972627,0.2916855,685.67,684.63,1.09271228]
[1737897972833,0.2916855,685.67,684.64,0.26825609]
[1737897973429,0.2916855,685.67,684.65,0.26825624]
[1737897973625,0.2916855,685.67,684.63,1.09271228]
[1737897973832,0.2916855,685.67,684.64,0.26825541]
[1737897974427,0.2916855,685.67,684.64,1.36096769]
[1737897974626,0.2916855,685.67,684.65,0.26825541]
[1737897976130,0.2916855,685.67,684.64,1.09271228]
[1737897978034,0.2916855,685.67,684.6,0.29214139]
[1737897978035,0.2916855,685.67,684.66,1.09271228]
[1737897980733,0.2916855,685.67,684.6,0.29214139]
[1737897987839,0.2916855,685.67,684.61,0.26824601]
[1737897991841,0.2916855,685.67,684.68,1.09271228]
[1737897995145,0.2916855,685.67,684.64,1.09271228]
[1737897996447,0.2916855,685.67,684.6,0.29214139]
[1737897998548,0.2916855,685.67,684.65,1.09403469]
[1737898001650,0.2916855,685.67,684.64,1.09403469]
[1737898003349,0.2916855,685.67,684.65,0.26824205]
[1737898003952,0.2916855,685.67,684.64,1.09403469]
[1737898004957,0.2916855,685.67,684.65,0.26823821]
[1737898005652,0.2916855,685.67,684.67,1.09403469]
[1737898008060,0.2916855,685.67,684.71,1.09403469]
[1737898011354,0.2916855,685.67,684.73,1.09403469]
[1737898013856,0.2916855,685.67,684.76,1.09403469]
[1737898016255,0.2916855,685.67,684.73,1.09403469]
[1737898019466,0.2916855,685.67,684.67,1.09403469]
[1737898022362,0.2916855,685.67,684.66,1.09403469]
[1737898025970,0.2916855,685.67,684.63,1.09403469]
[1737898029370,0.2916855,685.67,684.6,0.29214139]
[1737898029371,0.2916855,685.67,684.67,1.09403469]
[1737898035074,0.2916855,685.67,684.72,1.09403469]
[1737898037376,0.2916855,685.67,684.6,0.29214139]
[1737898037377,0.2916855,685.67,684.71,1.09403469]
[1737898043077,0.2916855,685.67,684.62,1.09403469]
[1737898045880,0.2916855,685.67,684.6,1.38617608]
[1737898049287,1.09381562,686.01,684.63,1.09403469]
[1737898049687,1.09381562,686.01,684.64,0.26822825]
[1737898052583,2.23320689,686.73,684.64,0.26822825]
[1737898052584,1.09381562,685.91,684.73,1.09403469]
[1737898055683,1.09381562,685.89,684.75,1.09403469]
[1737898058493,1.09381562,686.0,684.6,0.29214139]
[1737898058494,1.09381562,685.9,684.72,1.09403469]
[1737898061695,1.09381562,685.91,684.73,1.09403469]
[1737898064596,1.09381562,685.86,684.72,1.09403469]
[1737898068299,2.23320689,686.43,684.6,0.29214139]
[1737898068300,1.09381562,686.07,684.6,0.29214139]
[1737898068496,0.29152394,686.05,684.6,0.29214139]
[1737898076003,1.09381562,686.02,684.6,0.29214139]
[1737898076303,0.29154518,686.0,684.6,0.29214139]
[1737898086903,0.29154518,686.0,684.09,1.09403469]
[1737898087105,0.29154518,686.0,676.24,8.74167788]
[1737898087106,0.29154518,686.0,684.1,0.29235491]
[1737898089507,0.29154518,686.0,684.11,1.52384845]
[1737898089705,0.29154518,686.0,684.12,0.29234637]
[1737898093308,0.29154518,686.0,684.13,0.26836118]
[1737898093511,0.29154518,686.0,684.14,0.29233782]
[1737898093709,0.29154518,686.0,684.15,0.26836118]
[1737898093910,0.29154518,686.0,684.16,0.29232927]
[1737898094211,0.29154518,686.0,684.17,0.26836118]
[1737898094511,0.29154518,686.0,684.18,0.29232073]
[1737898094712,0.29154518,686.0,684.19,0.26836118]
[1737898094905,0.29154518,686.0,684.2,0.29231218]
[1737898095813,0.29154518,686.0,684.21,0.26835411]
[1737898096006,0.29154518,686.0,684.22,0.29230364]
[1737898096210,0.29154518,686.0,684.23,0.26835411]
[1737898096413,0.29154518,686.0,684.24,0.56064628]
[1737898096713,0.29154518,686.0,684.25,0.560642]
[1737898096913,0.29154518,686.0,684.26,0.56063773]
[1737898097112,0.29154518,686.0,684.27,0.56063346]
[1737898097314,0.29154518,686.0,684.28,0.56062919]
[1737898097614,1.09381562,685.98,684.29,0.56062492]
[1737898097811,0.29156219,685.96,684.3,0.56062065]
[1737898098013,0.29156219,685.96,684.31,0.56061638]
[1737898098213,0.29156219,685.96,684.32,0.56061211]
[1737898098414,0.29156219,685.96,684.33,0.26835118]
[1737898100315,1.09381562,685.9,684.33,0.26835118]
[1737898100516,0.29159194,685.89,684.33,0.26835118]
[1737898101815,0.29159194,685.89,684.34,0.26834617]
[1737898102015,0.29159194,685.89,684.33,0.26834617]
[1737898103717,1.09381562,685.77,684.33,0.26834617]
[1737898103917,0.29164722,685.76,684.33,0.26834617]
[1737898106720,1.09381562,685.68,684.34,1.09403469]
[1737898106924,1.09381562,685.68,684.35,0.26834617]
[1737898109621,1.09381562,685.65,684.37,1.09403469]
[1737898109821,1.09381562,685.65,684.38,0.26834617]
[1737898110521,1.09381562,685.65,684.37,1.09403469]
[1737898112825,0.29164722,685.76,684.32,0.29226093]
[1737898120534,0.29164722,685.76,684.33,0.26832774]
[1737898120729,0.29164722,685.76,684.34,0.29225238]
[1737898121233,0.29164722,685.76,684.35,0.26832261]
[1737898121434,0.29164722,685.76,684.36,0.29224384]
[1737898125942,0.29164722,685.76,684.36,1.38627853]
[1737898128535,0.29164722,685.76,684.38,1.09403469]
[1737898128740,0.29164722,685.76,684.39,0.29223103]
[1737898130041,0.29164722,685.76,684.4,0.26832682]
[1737898131037,0.29164722,685.76,684.41,0.29222249]
[1737898131240,0.29164722,685.76,684.42,0.26832682]
[1737898133638,0.29164722,685.76,684.41,0.29222249]
[1737898134439,1.09381562,685.64,684.48,1.09403469]
[1737898137747,1.09381562,685.74,684.41,0.29222249]
[1737898140549,0.29164722,685.76,684.41,0.29222249]
[1737898156066,0.29164722,685.76,684.42,0.26831303]
[1737898159768,1.09381562,685.62,684.52,1.09403469]
[1737898161965,1.09381562,685.6,684.54,1.09403469]
[1737898163969,1.09381562,685.6,684.55,0.26831255]
[1737898164865,1.09381562,685.58,684.55,1.36234724]
[1737898165069,1.09381562,685.58,684.55,1.09403469]
[1737898168070,1.09381562,685.74,684.5,1.09403469]
[1737898171675,1.09381562,685.75,684.5,1.09403469]
[1737898174475,0.29164722,685.76,684.49,1.09403469]
[1737898177980,0.29164722,685.76,684.41,0.29222249]
[1737898177981,1.09381562,685.72,684.48,1.09403469]
[1737898180575,1.09381562,685.71,684.48,1.09403469]
[1737898183082,1.09381562,685.67,684.48,1.09403469]
[1737898185180,1.09381562,685.66,684.48,1.09403469]
[1737898185384,1.09381562,685.66,684.49,0.26831707]
[1737898186480,1.09381562,685.66,684.48,1.09403469]
[1737898186686,1.09381562,685.66,684.49,0.26831942]
[1737898187984,1.09381562,685.59,684.54,1.09403469]
[1737898191186,1.09381562,685.6,684.52,1.09403469]
[1737898191590,1.09381562,685.6,684.53,0.26832218]
[1737898193288,1.09381562,685.6,684.54,0.26832133]
[1737898193486,1.09381562,685.6,684.52,1.09403469]
[1737898193689,1.09381562,685.6,684.53,0.26832181]
[1737898194394,0.29164722,685.76,684.54,1.09403469]
[1737898194395,1.09381562,685.56,684.54,1.09403469]
[1737898194585,1.09381562,685.56,684.55,0.26832139]
[1737898195293,1.09381562,685.56,684.54,1.09403469]
[1737898200489,1.09381562,685.58,684.51,1.09403469]
[1737898201794,1.09381562,685.58,684.52,0.26831629]
[1737898201987,1.09381562,685.58,684.51,1.09403469]
[1737898203387,1.09381562,685.59,684.5,1.09403469]
[1737898206297,0.29164722,685.76,684.41,0.29222249]
[1737898223507,0.29164722,685.76,684.42,0.26834812]
[1737898223808,0.29164722,685.76,684.41,0.29222249]
[1737898224310,1.09381562,685.65,684.41,0.29222249]
[1737898226911,1.09381562,685.64,684.41,0.29222249]
[1737898230718,1.09381562,685.63,684.41,0.29222249]